fUSD/lending_fUSD_20240429
["ID","MTS","AMOUNT","RATE_DAILY","PERIOD"]
[324826105,1714353038758,-500.0,0.00012899,2]
[324826106,1714353038767,-449.6965016,0.00012899,2]
[324826107,1714353038776,-500.0,0.00012899,2]
[324826108,1714353038786,-565.83,0.00012899,2]
[324826109,1714353038795,-500.0,0.00012899,2]
[324826110,1714353038804,-500.0,0.00012899,2]
[324826111,1714353038814,-500.0,0.00012899,2]
[324826112,1714353038823,-692.71,0.00012899,2]
[324826113,1714353038832,-500.0,0.00012899,2]
[324826114,1714353038842,-500.0,0.00012899,2]
[324826115,1714353038851,-500.0,0.00012899,2]
[324826116,1714353038861,-500.0,0.00012899,2]
[324826117,1714353038870,-500.0,0.00012899,2]
[324826118,1714353038879,-500.0,0.00012899,2]
[324826119,1714353038889,-500.0,0.00012899,2]
[324826121,1714353038898,-500.0,0.00012899,2]
[324826123,1714353038907,-500.0,0.00012899,2]
[324826124,1714353038917,-1500.25,0.00012899,2]
[324826125,1714353038926,-500.0,0.00012899,2]
[324826126,1714353038936,-514.92,0.00012899,2]
[324826127,1714353038945,-500.0,0.00012899,2]
[324826128,1714353038955,-500.0,0.00012899,2]
[324826129,1714353038965,-644.73,0.00012899,2]
[324826130,1714353038974,-500.0,0.00012899,2]
[324826131,1714353038983,-500.0,0.00012899,2]
[324826132,1714353038992,-500.0,0.00012899,2]
[324826133,1714353039002,-500.0,0.00012899,2]
[324826134,1714353039011,-500.0,0.00012899,2]
[324826135,1714353039020,-500.0,0.00012899,2]
[324826136,1714353039030,-964.44,0.00012899,2]
[324826137,1714353039039,-248.07,0.00012899,2]
[324826138,1714353039048,-500.0,0.00012899,2]
[324826139,1714353039057,-500.0,0.00012899,2]
[324826140,1714353039067,-500.0,0.00012899,2]
[324826141,1714353039076,-8178.82,0.00012899,2]
[324826142,1714353039085,-8922.95,0.00012899,2]
[324826143,1714353039096,-500.0,0.00012899,2]
[324826144,1714353039105,-500.0,0.00012899,2]
[324826145,1714353039114,-500.0,0.00012899,2]
[324826146,1714353039123,-500.0,0.00012899,2]
[324826147,1714353039132,-500.0,0.00012899,2]
[324826148,1714353039142,-500.0,0.00012899,2]
[324826149,1714353039152,-500.0,0.00012899,2]
[324826150,1714353039161,-500.0,0.00012899,2]
[324826151,1714353039170,-500.0,0.00012899,2]
[324826152,1714353039179,-500.0,0.00012899,2]
[324826153,1714353039188,-500.0,0.00012899,2]
[324826154,1714353039197,-531.11,0.00012899,2]
[324826155,1714353039208,-500.0,0.00012899,2]
[324826156,1714353039218,-347.49,0.00012899,2]
[324826157,1714353039227,-500.0,0.00012899,2]
[324826158,1714353039236,-500.0,0.00012899,2]
[324826159,1714353039246,-500.0,0.00012899,2]
[324826160,1714353039255,-500.0,0.00012899,2]
[324826161,1714353039264,-500.0,0.00012899,2]
[324826162,1714353039273,-500.0,0.00012899,2]
[324826163,1714353039282,-500.0,0.00012899,2]
[324826164,1714353039292,-500.0,0.00012899,2]
[324826165,1714353039301,-1758.02,0.00012899,2]
[324826166,1714353039311,-500.0,0.00012899,2]
[324826167,1714353039322,-1014.41,0.00012899,2]
[324826168,1714353039332,-500.0,0.00012899,2]
[324826169,1714353039341,-2790.14,0.00012899,2]
[324826170,1714353039350,-500.0,0.00012899,2]
[324826171,1714353039359,-500.0,0.00012899,2]
[324826172,1714353039370,-500.0,0.00012899,2]
[324826173,1714353039380,-500.0,0.00012899,2]
[324826174,1714353039389,-500.0,0.00012899,2]
[324826175,1714353039398,-500.0,0.00012899,2]
[324826176,1714353039407,-500.0,0.00012899,2]
[324826177,1714353039417,-1084.46,0.00012899,2]
[324826178,1714353039428,-510.87,0.00012899,2]
[324826179,1714353039439,-1134.72,0.00012899,2]
[324826180,1714353039448,-500.0,0.00012899,2]
[324826181,1714353039458,-953.53,0.00012899,2]
[324826182,1714353039467,-500.0,0.00012899,2]
[324826183,1714353039476,-500.0,0.00012899,2]
[324826184,1714353039487,-500.0,0.00012899,2]
[324826185,1714353039498,-2772.84,0.00012899,2]
[324826186,1714353039508,-500.0,0.00012899,2]
[324826187,1714353039521,-879.87,0.00012899,2]
[324826188,1714353039531,-500.0,0.00012899,2]
[324826189,1714353039540,-1097.26,0.00012899,2]
[324826190,1714353039548,-500.0,0.00012899,2]
[324826191,1714353039558,-960.08,0.00012899,2]
[324826192,1714353039567,-500.0,0.00012899,2]
[324826193,1714353039576,-500.0,0.00012899,2]
[324826194,1714353039585,-610.15,0.00012899,2]
[324826195,1714353039595,-711.54,0.00012899,2]
[324826196,1714353039604,-500.0,0.00012899,2]
[324826197,1714353039614,-500.0,0.00012899,2]
[324826198,1714353039623,-500.0,0.00012899,2]
[324826199,1714353039636,-500.0,0.00012899,2]
[324826200,1714353039646,-500.0,0.00012899,2]
[324826201,1714353039655,-500.0,0.00012899,2]
[324826202,1714353039665,-500.0,0.00012899,2]
[324826203,1714353039675,-500.0,0.00012899,2]
[324826204,1714353039684,-500.0,0.00012899,2]
[324826205,1714353039693,-803.34,0.00012899,2]
[324826206,1714353039703,-500.0,0.00012899,2]
[324826207,1714353039712,-914.33,0.00012899,2]
[324826208,1714353039722,-2426.7,0.00012899,2]
[324826209,1714353039732,-500.0,0.00012899,2]
[324826210,1714353039741,-500.0,0.00012899,2]
[324826211,1714353039751,-500.0,0.00012899,2]
[324826212,1714353039763,-500.0,0.00012899,2]
[324826213,1714353039773,-500.0,0.00012899,2]
[324826214,1714353039782,-2548.3,0.00012899,2]
[324826215,1714353039791,-495.54128012,0.00012899,2]
[324826216,1714353039800,-500.0,0.00012899,2]
[324826217,1714353039809,-500.0,0.00012899,2]
[324826218,1714353039818,-500.0,0.00012899,2]
[324826219,1714353039827,-500.0,0.00012899,2]
[324826220,1714353039837,-313.84,0.00012899,2]
[324826221,1714353039847,-840.5,0.00012899,2]
[324826222,1714353039857,-500.0,0.00012899,2]
[324826223,1714353039867,-500.0,0.00012899,2]
[324826224,1714353039876,-500.0,0.00012899,2]
[324826225,1714353039886,-10000.0,0.000129,2]
[324826226,1714353039897,-10000.0,0.000129,2]
[324826227,1714353039908,-79520.41234136,0.000129,2]
[324826228,1714353039920,-87199.06829389,0.000129,2]
[324826229,1714353039935,-770.101539,0.000129,2]
[324826230,1714353039947,-22629.60314124,0.000129,2]
[324826231,1714353039959,-12858.23052587,0.000129,2]
[324826232,1714353039969,-16050.98361414,0.000129,2]
[324826233,1714353039981,-629.42734878,0.000129,2]
[324826234,1714353039992,-946.67592046,0.000129,2]
[324826235,1714353040003,-712.29463692,0.000129,2]
[324826236,1714353040014,-580.79166872,0.000129,2]
[324826237,1714353040040,-278.278,0.000129,2]
[324826238,1714353040052,-3232.3,0.000129,2]
[324826239,1714353040063,-438.4984385,0.000129,2]
[324826240,1714353040087,-1712.14150609,0.000129,2]
[324826241,1714353040098,-353.55961219,0.000129,2]
[324826244,1714353040495,-1198.3843542,0.000129,2]
[324826245,1714353040505,-180.21956281,0.000129,2]
[324826246,1714353040519,-419.34,0.0001291,2]
[324826247,1714353040530,-162.2255247,0.00012989,2]
[324826248,1714353040540,-156.63444584,0.0001299,2]
[324826249,1714353040551,-1662.45611244,0.0001299,2]
[324826250,1714353040566,-504.0,0.0001299,2]
[324826251,1714353040578,-32012.5833153,0.0001299,2]
[324826252,1714353040592,-6138.24029314,0.0001299,2]
[324826253,1714353040609,-2424.84669876,0.0001299,2]
[324826254,1714353040623,-265938.57510485,0.0001299,2]
[324826255,1714353040899,-4076.72309951,0.0001299,2]
[324826256,1714353040910,-1766.78117,0.0001299,2]
[324826257,1714353040942,-33370.36231882,0.0001299,2]
[324826293,1714353043496,-2576.68562746,0.0001299,2]
[324826295,1714353043509,-404.41077567,0.0001299,2]
[324826296,1714353043532,-1340.55576,0.0001299,2]
[324826297,1714353043574,-2743.60337896,0.0001299,2]
[324826298,1714353043587,-630.63,0.0001299,2]
[324826299,1714353043862,-3224.14259356,0.0001299,2]
[324826300,1714353043916,-2906.26428458,0.0001299,2]
[324826304,1714353046558,-335.27295591,0.00012329,2]
[324826305,1714353046682,-188.72704409,0.00012329,2]
[324826306,1714353046692,-540.39397324,0.00012899,2]
[324826307,1714353046700,-193.89800208,0.00012899,2]
[324826379,1714354232978,-5157.94113114,8.982e-05,2]
[324826381,1714354232989,-155.0,8.982e-05,2]
[324826383,1714354232998,-621.89438746,8.983e-05,2]
[324826385,1714354233007,-1294.66870837,8.984e-05,2]
[324826387,1714354233017,-537.58418051,8.993e-05,2]
[324826389,1714354233026,-219.94,8.999e-05,2]
[324826391,1714354233035,-545.09469603,0.000104,2]
[324826392,1714354233045,-1102.31,0.00010717,2]
[324826394,1714354233054,-250.0,0.00010731,2]
[324826397,1714354233064,-1000.0,0.00010761,2]
[324826398,1714354233073,-12885.82,0.00010778,2]
[324826400,1714354233082,-161.28,0.00010827,2]
[324826403,1714354233096,-166.18,0.00010862,2]
[324826405,1714354233106,-378.16,0.00010862,2]
[324826407,1714354233115,-205.6,0.0001087,2]
[324826409,1714354233125,-165.55,0.00010878,2]
[324826411,1714354233135,-450.63,0.00010878,2]
[324826413,1714354233144,-441.05698349,0.000109,2]
[324826415,1714354233153,-874.13,0.00010917,2]
[324826417,1714354233162,-150.0,0.00010959,2]
[324826418,1714354233172,-150.0,0.00010959,2]
[324826420,1714354233181,-162.38,0.00011105,2]
[324826423,1714354233190,-466.46,0.00011105,2]
[324826424,1714354233200,-499.99,0.00011105,2]
[324826426,1714354233209,-162.38,0.0001111,2]
[324826428,1714354233218,-162.38,0.00011115,2]
[324826430,1714354233228,-162.38,0.0001112,2]
[324826433,1714354233238,-162.38,0.00011125,2]
[324826434,1714354233247,-162.38,0.0001113,2]
[324826436,1714354233256,-162.38,0.00011135,2]
[324826439,1714354233265,-162.38,0.0001114,2]
[324826440,1714354233274,-162.38,0.00011145,2]
[324826443,1714354233284,-162.38,0.00011151,2]
[324826444,1714354233293,-162.38,0.00011156,2]
[324826446,1714354233302,-162.38,0.00011161,2]
[324826447,1714354233311,-165.55,0.00011161,2]
[324826448,1714354233320,-553.90275055,0.00011198,2]
[324826449,1714354233330,-157.59478557,0.0001121,2]
[324826450,1714354233339,-879.29826778,0.00011221,2]
[324826451,1714354233348,-219.94,0.00011263,2]
[324826452,1714354233357,-879.29826778,0.00011312,2]
[324826453,1714354233366,-879.29826778,0.00011402,2]
[324826454,1714354233376,-260.07597091,0.00011444,2]
[324826455,1714354233385,-165.55,0.00011445,2]
[324826456,1714354233394,-260.07597091,0.00011447,2]
[324826457,1714354233403,-213.77731064,0.00011541,2]
[324826458,1714354233412,-157.59478557,0.00011581,2]
[324826459,1714354233422,-159.46902522,0.00011583,2]
[324826460,1714354233432,-155.59393991,0.00011608,2]
[324826461,1714354233442,-213.77731064,0.0001163,2]
[324826462,1714354233452,-357.40269524,0.00011654,2]
[324826463,1714354233461,-341.06776599,0.00011658,2]
[324826464,1714354233470,-357.40269524,0.00011689,2]
[324826465,1714354233482,-164.53067281,0.00011764,2]
[324826466,1714354233491,-155.59393991,0.00011766,2]
[324826467,1714354233500,-553.90275055,0.00011812,2]
[324826468,1714354233510,-152.16336008,0.00011872,2]
[324826469,1714354233519,-157.59478557,0.00011992,2]
[324826470,1714354233529,-5000.0,0.00012,2]
[324826471,1714354233538,-409.24645721,0.00012032,2]
[324826472,1714354233547,-168.56,0.00012033,2]
[324826473,1714354233556,-879.29826778,0.00012044,2]
[324826474,1714354233566,-1000.0,0.00012106,2]
[324826475,1714354233575,-155.24561291,0.00012179,2]
[324826476,1714354233584,-350.62,0.00012192,2]
[324826477,1714354233594,-150.0,0.00012192,2]
[324826478,1714354233603,-150.0,0.00012192,2]
[324826479,1714354233612,-325.4,0.00012192,2]
[324826480,1714354233622,-159.96,0.00012192,2]
[324826481,1714354233632,-522.29,0.00012192,2]
[324826482,1714354233641,-150.0,0.00012192,2]
[324826483,1714354233650,-350.62,0.00012192,2]
[324826484,1714354233660,-150.0,0.00012192,2]
[324826485,1714354233670,-522.29,0.00012192,2]
[324826486,1714354233679,-150.0,0.00012192,2]
[324826487,1714354233688,-150.0,0.00012192,2]
[324826488,1714354233699,-350.17,0.00012192,2]
[324826489,1714354233709,-150.0,0.00012192,2]
[324826490,1714354233719,-522.29,0.00012192,2]
[324826491,1714354233728,-150.0,0.00012192,2]
[324826492,1714354233739,-150.0,0.00012192,2]
[324826493,1714354233748,-150.0,0.00012192,2]
[324826494,1714354233757,-150.0,0.00012192,2]
[324826495,1714354233766,-522.29,0.00012192,2]
[324826496,1714354233775,-150.0,0.00012192,2]
[324826497,1714354233785,-521.19,0.00012192,2]
[324826498,1714354233794,-150.0,0.00012192,2]
[324826499,1714354233806,-150.0,0.00012192,2]
[324826500,1714354233816,-205.6,0.00012229,2]
[324826501,1714354233826,-155.59393991,0.00012247,2]
[324826502,1714354233835,-525.0,0.00012329,2]
[324826503,1714354233845,-1655.40252715,0.00012339,2]
[324826504,1714354233854,-154.36659326,0.00012449,2]
[324826505,1714354233863,-155.29928962,0.00012498,2]
[324826506,1714354233873,-260.07597091,0.00012539,2]
[324826507,1714354233885,-152.16336008,0.00012545,2]
[324826508,1714354233894,-151.95130288,0.00012588,2]
[324826509,1714354233903,-289.0935,0.00012699,2]
[324826510,1714354233912,-2067.288,0.00012699,2]
[324826511,1714354233922,-1000.0,0.00012699,2]
[324826512,1714354233931,-553.90275055,0.00012715,2]
[324826513,1714354233940,-516.65566223,0.00012788,2]
[324826514,1714354233950,-516.65566223,0.00012789,2]
[324826515,1714354233959,-516.65566223,0.00012789,2]
[324826516,1714354233968,-516.65566223,0.00012789,2]
[324826517,1714354233978,-516.65566223,0.00012789,2]
[324826518,1714354233988,-516.65566223,0.00012789,2]
[324826519,1714354233998,-516.65566223,0.00012789,2]
[324826520,1714354234007,-516.65566223,0.00012789,2]
[324826521,1714354234016,-7500.0,0.00012789,2]
[324826522,1714354234025,-765.4445,0.00012793,2]
[324826523,1714354234035,-6545.1193,0.00012793,2]
[324826524,1714354234044,-322.69511777,0.00012793,2]
[324826525,1714354234054,-186.67421877,0.00012795,2]
[324826526,1714354234063,-43821.6663,0.00012798,2]
[324826527,1714354234072,-10874.1571,0.00012799,2]
[324826528,1714354234081,-47000.6368,0.00012799,2]
[324826529,1714354234091,-50806.6954,0.00012799,2]
[324826530,1714354234100,-328.05275896,0.000128,2]
[324826531,1714354234109,-157.59478557,0.00012803,2]
[324826532,1714354234118,-322.69511777,0.0001282,2]
[324826533,1714354234127,-322.69511777,0.00012847,2]
[324826534,1714354234136,-251.64589912,0.00012858,2]
[324826535,1714354234145,-516.65566223,0.0001286,2]
[324826536,1714354234154,-164.17158317,0.00012869,2]
[324826537,1714354234164,-11757.9160355,0.0001287,2]
[324826538,1714354234173,-322.69511777,0.00012873,2]
[324826539,1714354234182,-213.77731064,0.00012875,2]
[324826540,1714354234191,-525.0,0.00012877,2]
[324826541,1714354234200,-516.65566223,0.00012877,2]
[324826542,1714354234209,-200.00010193,0.0001288,2]
[324826543,1714354234219,-157.59478557,0.00012882,2]
[324826544,1714354234228,-158.90828199,0.00012886,2]
[324826545,1714354234237,-507.1603446,0.00012886,2]
[324826546,1714354234246,-510.43858337,0.00012886,2]
[324826547,1714354234256,-509.14744454,0.00012886,2]
[324826548,1714354234265,-512.09312565,0.00012886,2]
[324826549,1714354234274,-553.66655244,0.00012886,2]
[324826550,1714354234283,-344.27375432,0.00012886,2]
[324826551,1714354234292,-511.93955774,0.00012886,2]
[324826552,1714354234302,-603.47077874,0.00012886,2]
[324826553,1714354234312,-500.0,0.00012886,2]
[324826554,1714354234323,-530.65915686,0.00012886,2]
[324826555,1714354234332,-513.45076075,0.00012886,2]
[324826556,1714354234341,-510.45523506,0.00012886,2]
[324826557,1714354234350,-513.79872677,0.00012886,2]
[324826558,1714354234360,-523.88364651,0.00012886,2]
[324826559,1714354234369,-506.34100257,0.00012886,2]
[324826560,1714354234378,-511.9419185,0.00012886,2]
[324826561,1714354234388,-500.0,0.00012886,2]
[324826562,1714354234397,-500.0,0.00012887,2]
[324826563,1714354234407,-500.0,0.00012887,2]
[324826564,1714354234416,-529.82,0.00012887,2]
[324826565,1714354234426,-500.0,0.00012887,2]
[324826566,1714354234435,-500.0,0.00012887,2]
[324826567,1714354234445,-500.0,0.00012887,2]
[324826568,1714354234455,-500.0,0.00012887,2]
[324826569,1714354234465,-500.0,0.00012887,2]
[324826570,1714354234474,-500.0,0.00012887,2]
[324826571,1714354234484,-500.0,0.00012887,2]
[324826572,1714354234493,-500.0,0.00012887,2]
[324826573,1714354234502,-500.0,0.00012887,2]
[324826574,1714354234512,-500.0,0.00012887,2]
[324826575,1714354234521,-1108.37,0.00012887,2]
[324826576,1714354234530,-500.0,0.00012887,2]
[324826577,1714354234539,-500.0,0.00012887,2]
[324826578,1714354234548,-970.24,0.00012887,2]
[324826579,1714354234558,-500.0,0.00012887,2]
[324826580,1714354234567,-500.0,0.00012887,2]
[324826581,1714354234576,-500.0,0.00012887,2]
[324826582,1714354234585,-500.0,0.00012887,2]
[324826583,1714354234595,-500.0,0.00012887,2]
[324826584,1714354234604,-829.81,0.00012887,2]
[324826585,1714354234613,-568.56989953,0.00012887,2]
[324826586,1714354234622,-535.97650628,0.00012887,2]
[324826587,1714354234632,-500.0,0.00012887,2]
[324826588,1714354234641,-551.9090778,0.00012887,2]
[324826589,1714354234651,-2640.79,0.00012887,2]
[324826590,1714354234660,-500.0,0.00012888,2]
[324826591,1714354234670,-500.0,0.00012888,2]
[324826592,1714354234679,-500.0,0.00012888,2]
[324826593,1714354234689,-884.05,0.00012888,2]
[324826594,1714354234698,-500.0,0.00012888,2]
[324826595,1714354234707,-500.0,0.00012888,2]
[324826596,1714354234716,-500.0,0.00012888,2]
[324826597,1714354234726,-500.0,0.00012888,2]
[324826598,1714354234736,-500.0,0.00012888,2]
[324826599,1714354234746,-500.0,0.00012888,2]
[324826600,1714354234755,-1475.72,0.00012888,2]
[324826601,1714354234765,-500.0,0.00012888,2]
[324826602,1714354234775,-500.0,0.00012888,2]
[324826603,1714354234784,-651.63,0.00012888,2]
[324826604,1714354234793,-500.0,0.00012888,2]
[324826605,1714354234806,-500.0,0.00012888,2]
[324826606,1714354234815,-500.0,0.00012888,2]
[324826607,1714354234825,-500.0,0.00012888,2]
[324826608,1714354234835,-500.0,0.00012888,2]
[324826609,1714354234846,-500.0,0.00012888,2]
[324826610,1714354234855,-500.0,0.00012888,2]
[324826611,1714354234864,-500.0,0.00012888,2]
[324826612,1714354234873,-500.0,0.00012888,2]
[324826613,1714354234883,-500.0,0.00012888,2]
[324826614,1714354234894,-500.0,0.00012888,2]
[324826615,1714354234904,-500.0,0.00012888,2]
[324826616,1714354234913,-1032.46,0.00012888,2]
[324826617,1714354234923,-500.0,0.00012888,2]
[324826618,1714354234933,-726.59,0.00012888,2]
[324826619,1714354234942,-843.21,0.00012888,2]
[324826620,1714354234952,-506.25,0.00012888,2]
[324826621,1714354234961,-729.48,0.00012888,2]
[324826622,1714354234970,-1078.79,0.00012888,2]
[324826623,1714354234980,-500.0,0.00012888,2]
[324826624,1714354234990,-605.56,0.00012888,2]
[324826625,1714354235000,-500.0,0.00012888,2]
[324826626,1714354235009,-432.43160464,0.00012888,2]
[324826647,1714354237828,-351.13088306,0.00012886,2]
[324826657,1714354238033,-126.75962175,0.00012886,2]
[324826658,1714354238043,-521.80754938,0.00012886,2]
[324826659,1714354238054,-563.36923183,0.00012886,2]
[324826660,1714354238065,-437.9010396,0.00012886,2]
[324826672,1714354239994,-116.68426403,0.00012886,2]
[324826673,1714354240006,-232.09223367,0.00012886,2]
[324826674,1714354240204,-288.60081834,0.00012886,2]
[324826675,1714354240214,-504.84364271,0.00012886,2]
[324826676,1714354240225,-851.45,0.00012887,2]
[324826677,1714354240234,-67.56839536,0.00012888,2]
[324826678,1714354240245,-2463.31,0.00012888,2]
[324826679,1714354240255,-500.0,0.00012888,2]
[324826680,1714354240264,-1.79983173,0.00012888,2]
[324826681,1714354240275,-302.86894,0.00012888,2]
[324826682,1714354240286,-604.57016637,0.00012888,2]
[324826683,1714354240297,-83.3310619,0.00012888,2]
[324826684,1714354240308,-166.80170875,0.00012888,2]
[324826685,1714354240320,-333.19829125,0.00012888,2]
[324826686,1714354240330,-500.0,0.00012888,2]
[324826687,1714354240339,-605.4899814,0.00012888,2]
[324826688,1714354240349,-527.6495033,0.00012888,2]
[324826689,1714354240358,-627.59228483,0.00012888,2]
[324826690,1714354240367,-500.0,0.00012889,2]
[324826691,1714354240376,-500.0,0.00012889,2]
[324826692,1714354240385,-500.0,0.00012889,2]
[324826693,1714354240395,-500.0,0.00012889,2]
[324826694,1714354240404,-500.0,0.00012889,2]
[324826695,1714354240413,-500.0,0.00012889,2]
[324826696,1714354240422,-500.0,0.00012889,2]
[324826697,1714354240431,-500.0,0.00012889,2]
[324826698,1714354240440,-500.0,0.00012889,2]
[324826699,1714354240450,-500.13,0.00012889,2]
[324826700,1714354240460,-500.0,0.00012889,2]
[324826701,1714354240470,-500.0,0.00012889,2]
[324826702,1714354240479,-500.0,0.00012889,2]
[324826703,1714354240489,-500.0,0.00012889,2]
[324826704,1714354240498,-500.0,0.00012889,2]
[324826705,1714354240507,-500.0,0.00012889,2]
[324826706,1714354240516,-179.16767925,0.00012889,2]
[324826707,1714354240525,-500.0,0.00012889,2]
[324826708,1714354240535,-500.0,0.00012889,2]
[324826709,1714354240684,-500.0,0.00012889,2]
[324826710,1714354240697,-156.01752318,0.00012889,2]
[324826711,1714354240707,-500.0,0.00012889,2]
[324826712,1714354240716,-500.0,0.00012889,2]
[324826713,1714354240726,-500.0,0.00012889,2]
[324826714,1714354240735,-500.0,0.00012889,2]
[324826715,1714354240745,-551.92,0.00012889,2]
[324826716,1714354240754,-500.0,0.00012889,2]
[324826717,1714354240763,-500.0,0.00012889,2]
[324826718,1714354240772,-502.96729851,0.00012889,2]
[324826719,1714354240781,-500.0,0.00012889,2]
[324826720,1714354240790,-225.41,0.00012889,2]
[324826721,1714354240799,-500.0,0.00012889,2]
[324826722,1714354240813,-500.0,0.00012889,2]
[324826723,1714354240822,-501.26242462,0.00012889,2]
[324826724,1714354240831,-506.95400221,0.00012889,2]
[324826725,1714354240841,-500.99131182,0.00012889,2]
[324826726,1714354240851,-500.0,0.00012889,2]
[324826727,1714354240860,-500.0,0.00012889,2]
[324826728,1714354240869,-500.0012321,0.00012889,2]
[324826729,1714354240879,-159.88387038,0.00012889,2]
[324826752,1714354243005,-340.11612962,0.00012889,2]
[324826753,1714354243015,-500.0,0.00012889,2]
[324826754,1714354243024,-500.0,0.00012889,2]
[324826755,1714354243033,-500.53352982,0.00012889,2]
[324826756,1714354243043,-500.0,0.00012889,2]
[324826757,1714354243052,-500.0,0.00012889,2]
[324826758,1714354243061,-502.27327718,0.00012889,2]
[324826759,1714354243071,-500.0,0.00012889,2]
[324826760,1714354243080,-500.0,0.00012889,2]
[324826761,1714354243089,-500.0,0.00012889,2]
[324826762,1714354243098,-500.0,0.00012889,2]
[324826763,1714354243107,-500.0,0.00012889,2]
[324826764,1714354243116,-644.82,0.00012889,2]
[324826765,1714354243125,-500.0,0.00012889,2]
[324826766,1714354243135,-500.0,0.00012889,2]
[324826767,1714354243144,-500.0,0.00012889,2]
[324826768,1714354243153,-500.0,0.00012889,2]
[324826769,1714354243163,-500.0,0.00012889,2]
[324826770,1714354243173,-320.37,0.00012889,2]
[324826771,1714354243182,-164.73704397,0.00012889,2]
[324826772,1714354243193,-500.0,0.00012889,2]
[324826773,1714354243203,-500.71562997,0.00012889,2]
[324826774,1714354243213,-500.0,0.00012889,2]
[324826775,1714354243222,-500.0,0.00012889,2]
[324826776,1714354243231,-500.0,0.00012889,2]
[324826777,1714354243243,-500.0,0.00012889,2]
[324826778,1714354243252,-500.0,0.00012889,2]
[324826779,1714354243262,-500.0,0.00012889,2]
[324826780,1714354243271,-500.0,0.00012889,2]
[324826781,1714354243281,-597.04,0.00012889,2]
[324826782,1714354243290,-505.52919268,0.00012889,2]
[324826783,1714354243299,-500.0,0.00012889,2]
[324826784,1714354243309,-514.3,0.00012889,2]
[324826785,1714354243318,-500.0,0.00012889,2]
[324826786,1714354243327,-500.0,0.00012889,2]
[324826787,1714354243337,-500.0,0.00012889,2]
[324826788,1714354243346,-500.0,0.00012889,2]
[324826789,1714354243355,-500.0,0.00012889,2]
[324826790,1714354243364,-500.0,0.00012889,2]
[324826791,1714354243374,-500.0,0.00012889,2]
[324826792,1714354243383,-500.0,0.00012889,2]
[324826793,1714354243393,-500.0,0.00012889,2]
[324826794,1714354243402,-500.0,0.00012889,2]
[324826795,1714354243412,-500.0,0.00012889,2]
[324826796,1714354243421,-500.0,0.00012889,2]
[324826797,1714354243433,-500.0,0.00012889,2]
[324826798,1714354243442,-500.0,0.00012889,2]
[324826799,1714354243452,-500.0,0.00012889,2]
[324826800,1714354243462,-500.0,0.00012889,2]
[324826801,1714354243473,-9365.8,0.00012889,2]
[324826802,1714354243482,-500.0,0.00012889,2]
[324826803,1714354243493,-500.0,0.00012889,2]
[324826804,1714354243503,-500.0,0.00012889,2]
[324826806,1714354243513,-500.0,0.00012889,2]
[324826808,1714354243524,-500.0,0.00012889,2]
[324826810,1714354243533,-500.0,0.00012889,2]
[324826812,1714354243542,-500.0,0.00012889,2]
[324826814,1714354243551,-500.0,0.00012889,2]
[324826816,1714354243562,-500.0,0.00012889,2]
[324826818,1714354243570,-500.0,0.00012889,2]
[324826821,1714354243579,-510.94,0.00012889,2]
[324826824,1714354243588,-500.0,0.00012889,2]